[Event "Late-Titled-Tuesday-Blitz-November-28-2023"]
[Site "Chess.com"]
[Date "2023.11.28"]
[Round "10"]
[White "LUISMIGUELOV"]
[Black "emeli_chess"]
[Result "0-1"]
[WhiteElo "2210"]
[BlackElo "2367"]
[TimeControl "180+1"]
[EndTime "15:53:08 PST"]
[Termination "emeli_chess won on time"]

1. d4 {[%clk 0:02:56]} 1... Nf6 {[%clk 0:02:59.4]} 2. c3 {[%clk 0:02:56]} 2...
d5 {[%clk 0:02:57.1]} 3. Bg5 {[%clk 0:02:56.2]} 3... Ne4 {[%clk 0:02:50.6]} 4.
h4 {[%clk 0:02:56]} 4... h6 {[%clk 0:02:47.2]} 5. Bf4 {[%clk 0:02:55.1]} 5...
Bf5 {[%clk 0:02:44.5]} 6. Nd2 {[%clk 0:02:54.6]} 6... Nxd2 {[%clk 0:02:42.3]} 7.
Qxd2 {[%clk 0:02:54.1]} 7... e6 {[%clk 0:02:41.5]} 8. Nf3 {[%clk 0:02:49.7]}
8... Bd6 {[%clk 0:02:41]} 9. Ne5 {[%clk 0:02:45.1]} 9... Nd7 {[%clk 0:02:35]}
10. g3 {[%clk 0:02:43.9]} 10... Bxe5 {[%clk 0:02:33.7]} 11. Bxe5 {[%clk
0:02:43.3]} 11... Nxe5 {[%clk 0:02:32.5]} 12. dxe5 {[%clk 0:02:42.7]} 12... O-O
{[%clk 0:02:31.8]} 13. f4 {[%clk 0:02:42]} 13... Be4 {[%clk 0:02:26.9]} 14. Rh2
{[%clk 0:02:40.3]} 14... c5 {[%clk 0:02:25.3]} 15. Bg2 {[%clk 0:02:39.4]} 15...
Bxg2 {[%clk 0:02:24.1]} 16. Rxg2 {[%clk 0:02:39.1]} 16... d4 {[%clk 0:02:10.8]}
17. O-O-O {[%clk 0:02:36.1]} 17... dxc3 {[%clk 0:02:05.6]} 18. Qxc3 {[%clk
0:02:32.1]} 18... Qc7 {[%clk 0:01:58.5]} 19. e3 {[%clk 0:02:28.7]} 19... Rfd8
{[%clk 0:01:48.6]} 20. Rgd2 {[%clk 0:02:29.1]} 20... Rxd2 {[%clk 0:01:39.8]} 21.
Qxd2 {[%clk 0:02:28.8]} 21... Rc8 {[%clk 0:01:28.5]} 22. g4 {[%clk 0:02:23.8]}
22... c4 {[%clk 0:01:26.9]} 23. g5 {[%clk 0:02:20.6]} 23... hxg5 {[%clk
0:01:19.5]} 24. hxg5 {[%clk 0:02:20.3]} 24... c3 {[%clk 0:01:19.8]} 25. bxc3
{[%clk 0:02:20.3]} 25... Qxc3+ {[%clk 0:01:19.1]} 26. Qxc3 {[%clk 0:02:20.1]}
26... Rxc3+ {[%clk 0:01:19.1]} 27. Kd2 {[%clk 0:02:15.5]} 27... Ra3 {[%clk
0:01:18.6]} 28. Ra1 {[%clk 0:02:14.9]} 28... g6 {[%clk 0:01:15.4]} 29. Ke2
{[%clk 0:01:59.2]} 29... Kf8 {[%clk 0:01:13.8]} 30. Kf3 {[%clk 0:01:59.2]} 30...
Ke7 {[%clk 0:01:13.5]} 31. Rb1 {[%clk 0:01:59.5]} 31... b6 {[%clk 0:01:12.8]}
32. Rb2 {[%clk 0:01:58.9]} 32... Kd7 {[%clk 0:01:05.9]} 33. Rc2 {[%clk
0:01:57.8]} 33... b5 {[%clk 0:01:04.1]} 34. Ke4 {[%clk 0:01:57.4]} 34... a5
{[%clk 0:01:01.8]} 35. Kd4 {[%clk 0:01:55.9]} 35... b4 {[%clk 0:01:01.9]} 36. e4
{[%clk 0:01:48.7]} 36... b3 {[%clk 0:00:44.5]} 37. axb3 {[%clk 0:01:47.4]} 37...
Rxb3 {[%clk 0:00:44.7]} 38. Rc5 {[%clk 0:01:31.4]} 38... Rf3 {[%clk 0:00:43.9]}
39. f5 {[%clk 0:01:26]} 39... exf5 {[%clk 0:00:41.3]} 40. exf5 {[%clk 0:01:26]}
40... Rxf5 {[%clk 0:00:41.2]} 41. Rxa5 {[%clk 0:01:22.4]} 41... Ke6 {[%clk
0:00:39.6]} 42. Ra6+ {[%clk 0:01:07.8]} 42... Ke7 {[%clk 0:00:39.6]} 43. Ra7+
{[%clk 0:01:07.4]} 43... Kf8 {[%clk 0:00:38.8]} 44. Ke4 {[%clk 0:00:48.3]} 44...
Rxg5 {[%clk 0:00:38.5]} 45. Ra8+ {[%clk 0:00:33.5]} 45... Kg7 {[%clk 0:00:38]}
46. Ra7 {[%clk 0:00:33.6]} 46... Rg1 {[%clk 0:00:37.9]} 47. Kf4 {[%clk
0:00:30.8]} 47... Rf1+ {[%clk 0:00:37]} 48. Ke4 {[%clk 0:00:30.8]} 48... g5
{[%clk 0:00:34.8]} 49. Kd5 {[%clk 0:00:27]} 49... Re1 {[%clk 0:00:31.9]} 50. Ra4
{[%clk 0:00:20.5]} 50... Kg6 {[%clk 0:00:30.9]} 51. Ra8 {[%clk 0:00:20.1]} 51...
Kg7 {[%clk 0:00:24.8]} 52. Ra6 {[%clk 0:00:18.7]} 52... Rf1 {[%clk 0:00:21.1]}
53. Ra7 {[%clk 0:00:17.5]} 53... Kg6 {[%clk 0:00:19.4]} 54. Ra6+ {[%clk
0:00:17.4]} 54... Kh5 {[%clk 0:00:16.4]} 55. Ra8 {[%clk 0:00:10.3]} 55... g4
{[%clk 0:00:14.8]} 56. Rh8+ {[%clk 0:00:08.8]} 56... Kg5 {[%clk 0:00:14.9]} 57.
e6 {[%clk 0:00:08.7]} 57... fxe6+ {[%clk 0:00:14.6]} 58. Kxe6 {[%clk 0:00:08.1]}
58... g3 {[%clk 0:00:13.9]} 59. Ke5 {[%clk 0:00:03.5]} 59... Kg4 {[%clk
0:00:12.5]} 60. Ke4 {[%clk 0:00:02.8]} 60... Re1+ {[%clk 0:00:12.5]} 61. Kd3
{[%clk 0:00:02.4]} 61... Re7 {[%clk 0:00:12.4]} 62. Rg8+ {[%clk 0:00:01.9]}
62... Kf3 {[%clk 0:00:12.6]} 63. Rf8+ {[%clk 0:00:01.1]} 63... Kg2 {[%clk
0:00:12.4]} 64. Rf7 {[%clk 0:00:01.6]} 64... Rxf7 {[%clk 0:00:11.6]} 0-1

[Event "Late-Titled-Tuesday-Blitz-November-28-2023"]
[Site "Chess.com"]
[Date "2023.11.28"]
[Round "10"]
[White "Byniolus"]
[Black "Angry_Twin"]
[Result "0-1"]
[WhiteElo "2780"]
[BlackElo "2959"]
[TimeControl "180+1"]
[EndTime "15:53:09 PST"]
[Termination "Angry_Twin won by resignation"]

1. d4 {[%clk 0:03:00.9]} 1... Nf6 {[%clk 0:03:00.1]} 2. Nf3 {[%clk 0:03:01.3]}
2... d5 {[%clk 0:03:00.2]} 3. Bf4 {[%clk 0:03:01.5]} 3... c5 {[%clk 0:02:59.9]}
4. c3 {[%clk 0:03:02.2]} 4... Nc6 {[%clk 0:03:00.5]} 5. Nbd2 {[%clk 0:03:02.5]}
5... Qb6 {[%clk 0:02:56.7]} 6. Qb3 {[%clk 0:03:01.8]} 6... g6 {[%clk 0:02:56.1]}
7. e3 {[%clk 0:02:58.4]} 7... c4 {[%clk 0:02:56.2]} 8. Qxb6 {[%clk 0:02:58.7]}
8... axb6 {[%clk 0:02:56.6]} 9. a3 {[%clk 0:02:59.3]} 9... b5 {[%clk 0:02:56.8]}
10. Rc1 {[%clk 0:02:58.9]} 10... Bg7 {[%clk 0:02:56.6]} 11. h3 {[%clk
0:02:58.2]} 11... Nd7 {[%clk 0:02:54.7]} 12. Bc7 {[%clk 0:02:53.5]} 12... f5
{[%clk 0:02:47.7]} 13. g4 {[%clk 0:02:49.6]} 13... O-O {[%clk 0:02:44.5]} 14.
gxf5 {[%clk 0:02:45.6]} 14... Rxf5 {[%clk 0:02:44.6]} 15. Bg2 {[%clk 0:02:37.9]}
15... e6 {[%clk 0:02:42.6]} 16. O-O {[%clk 0:02:31]} 16... Nf6 {[%clk
0:02:34.9]} 17. Rfe1 {[%clk 0:02:23.7]} 17... Bh6 {[%clk 0:02:25.9]} 18. Nh4
{[%clk 0:01:53.2]} 18... Rh5 {[%clk 0:02:25.6]} 19. Bg3 {[%clk 0:01:53.2]} 19...
g5 {[%clk 0:02:17.4]} 20. Nhf3 {[%clk 0:01:48.4]} 20... g4 {[%clk 0:02:17.8]}
21. hxg4 {[%clk 0:01:37.2]} 21... Nxg4 {[%clk 0:02:18.7]} 22. e4 {[%clk
0:01:30.6]} 22... Bd7 {[%clk 0:02:17]} 23. Rcd1 {[%clk 0:01:26.4]} 23... Nf6
{[%clk 0:01:15.5]} 24. Ne5 {[%clk 0:01:15.3]} 24... Be8 {[%clk 0:00:54.8]} 25.
exd5 {[%clk 0:01:03.4]} 25... exd5 {[%clk 0:00:53.5]} 26. Nf1 {[%clk 0:00:56]}
26... Bf7 {[%clk 0:00:24.8]} 27. Ne3 {[%clk 0:00:44.4]} 27... Bxe3 {[%clk
0:00:24.6]} 28. Rxe3 {[%clk 0:00:45.3]} 28... Re8 {[%clk 0:00:24.3]} 29. Rde1
{[%clk 0:00:37.8]} 29... Ne4 {[%clk 0:00:18.7]} 30. Bxe4 {[%clk 0:00:20.5]}
30... dxe4 {[%clk 0:00:18.9]} 31. Rxe4 {[%clk 0:00:21.4]} 31... Nxe5 {[%clk
0:00:14.5]} 32. Rxe5 {[%clk 0:00:16.2]} 32... Rhxe5 {[%clk 0:00:14.5]} 33. dxe5
{[%clk 0:00:14.3]} 33... Be6 {[%clk 0:00:14.6]} 34. Rd1 {[%clk 0:00:13]} 34...
Kf7 {[%clk 0:00:11.2]} 35. f4 {[%clk 0:00:11.8]} 35... Kg6 {[%clk 0:00:10.8]}
36. Kf2 {[%clk 0:00:11.7]} 36... Kf5 {[%clk 0:00:11.3]} 37. Rh1 {[%clk
0:00:09.5]} 37... Rd8 {[%clk 0:00:10.2]} 38. Rxh7 {[%clk 0:00:04.2]} 38... Ke4
{[%clk 0:00:10.3]} 39. Rh6 {[%clk 0:00:02.6]} 39... Bg4 {[%clk 0:00:08.6]} 40.
e6 {[%clk 0:00:02.1]} 40... Re8 {[%clk 0:00:09.1]} 41. Bh4 {[%clk 0:00:01.2]}
41... Bxe6 {[%clk 0:00:08.8]} 42. Kg3 {[%clk 0:00:01.3]} 42... Kd3 {[%clk
0:00:06.1]} 43. Bg5 {[%clk 0:00:02.2]} 43... Kc2 {[%clk 0:00:06.1]} 44. Rh2+
{[%clk 0:00:02.6]} 44... Kb3 {[%clk 0:00:06.7]} 45. Re2 {[%clk 0:00:03.1]} 45...
Bf7 {[%clk 0:00:05.8]} 46. Rd2 {[%clk 0:00:03.1]} 46... Bg6 {[%clk 0:00:05.4]}
47. Kg4 {[%clk 0:00:03.3]} 47... Bc2 {[%clk 0:00:05.6]} 48. f5 {[%clk
0:00:03.4]} 48... Re1 {[%clk 0:00:06]} 49. f6 {[%clk 0:00:03.2]} 49... Rg1+
{[%clk 0:00:06.3]} 50. Kf4 {[%clk 0:00:03.2]} 50... Rf1+ {[%clk 0:00:06.8]} 51.
Ke3 {[%clk 0:00:03.1]} 51... Rf5 {[%clk 0:00:03.9]} 52. Rf2 {[%clk 0:00:03]}
52... Rxf2 {[%clk 0:00:02.2]} 53. Kxf2 {[%clk 0:00:03.9]} 53... Bg6 {[%clk
0:00:02.8]} 54. Bf4 {[%clk 0:00:01.9]} 54... Kxb2 {[%clk 0:00:03]} 55. Be5
{[%clk 0:00:01.7]} 55... Kxa3 {[%clk 0:00:03.4]} 56. Ke3 {[%clk 0:00:02.4]}
56... Kb3 {[%clk 0:00:03.5]} 57. Kd4 {[%clk 0:00:02.5]} 57... b4 {[%clk
0:00:04.1]} 58. cxb4 {[%clk 0:00:03.4]} 58... c3 {[%clk 0:00:04.6]} 59. Ke3
{[%clk 0:00:02.6]} 59... Kxb4 {[%clk 0:00:04.1]} 60. Ke2 {[%clk 0:00:01.8]}
60... Kb3 {[%clk 0:00:04.5]} 61. Kd1 {[%clk 0:00:02.2]} 61... b5 {[%clk
0:00:05.1]} 62. Kc1 {[%clk 0:00:02.4]} 62... b4 {[%clk 0:00:05.3]} 63. Bd6
{[%clk 0:00:01.8]} 63... Kc4 {[%clk 0:00:05.5]} 64. Be5 {[%clk 0:00:01.4]} 64...
b3 {[%clk 0:00:05.7]} 65. Kd1 {[%clk 0:00:01.2]} 65... b2 {[%clk 0:00:05.8]} 0-1

[Event "Late-Titled-Tuesday-Blitz-November-28-2023"]
[Site "Chess.com"]
[Date "2023.11.28"]
[Round "10"]
[White "CSB7"]
[Black "Zampronha1971"]
[Result "1-0"]
[WhiteElo "2692"]
[BlackElo "2410"]
[TimeControl "180+1"]
[EndTime "15:53:13 PST"]
[Termination "CSB7 won by checkmate"]

1. c4 {[%clk 0:02:58]} 1... Nf6 {[%clk 0:02:59.2]} 2. Nc3 {[%clk 0:02:57.6]}
2... e6 {[%clk 0:02:59.7]} 3. e4 {[%clk 0:02:56.8]} 3... c5 {[%clk 0:02:51.9]}
4. e5 {[%clk 0:02:54.4]} 4... Ng8 {[%clk 0:02:52.4]} 5. Nf3 {[%clk 0:02:52.9]}
5... Nc6 {[%clk 0:02:52.9]} 6. d4 {[%clk 0:02:52.9]} 6... cxd4 {[%clk
0:02:53.8]} 7. Nxd4 {[%clk 0:02:53.4]} 7... Nxe5 {[%clk 0:02:52.1]} 8. Ndb5
{[%clk 0:02:52.3]} 8... f6 {[%clk 0:02:40.1]} 9. Be3 {[%clk 0:02:37.2]} 9... a6
{[%clk 0:02:09.3]} 10. Nd6+ {[%clk 0:02:36.1]} 10... Bxd6 {[%clk 0:02:09.9]} 11.
Qxd6 {[%clk 0:02:36.5]} 11... Nf7 {[%clk 0:02:10.2]} 12. Qb4 {[%clk 0:02:32.2]}
12... Qe7 {[%clk 0:02:01.1]} 13. Qxe7+ {[%clk 0:01:43.7]} 13... Nxe7 {[%clk
0:01:58.7]} 14. O-O-O {[%clk 0:01:39.9]} 14... Nf5 {[%clk 0:01:59.1]} 15. Bb6
{[%clk 0:01:37.8]} 15... O-O {[%clk 0:01:53.1]} 16. g3 {[%clk 0:01:26.4]} 16...
d6 {[%clk 0:01:45.6]} 17. Bg2 {[%clk 0:01:16.2]} 17... Bd7 {[%clk 0:01:44.3]}
18. Rhe1 {[%clk 0:01:12]} 18... Rfe8 {[%clk 0:01:39.8]} 19. f4 {[%clk
0:00:49.2]} 19... Bc6 {[%clk 0:01:37.5]} 20. Bh3 {[%clk 0:00:49.1]} 20... Rac8
{[%clk 0:01:25.5]} 21. b3 {[%clk 0:00:45.6]} 21... g6 {[%clk 0:01:21.4]} 22. Kb2
{[%clk 0:00:43.5]} 22... Kg7 {[%clk 0:01:11.5]} 23. a4 {[%clk 0:00:38.4]} 23...
h5 {[%clk 0:01:05.4]} 24. a5 {[%clk 0:00:33.4]} 24... d5 {[%clk 0:00:54.8]} 25.
cxd5 {[%clk 0:00:24]} 25... exd5 {[%clk 0:00:55.7]} 26. Rxe8 {[%clk 0:00:20.3]}
26... Rxe8 {[%clk 0:00:56.6]} 27. Nxd5 {[%clk 0:00:18.2]} 27... Re2+ {[%clk
0:00:55.6]} 28. Ka3 {[%clk 0:00:18.1]} 28... Rxh2 {[%clk 0:00:48.1]} 29. Bxf5
{[%clk 0:00:17.4]} 29... gxf5 {[%clk 0:00:49]} 30. Nc7 {[%clk 0:00:13.9]} 30...
Rg2 {[%clk 0:00:41.6]} 31. Rd3 {[%clk 0:00:08.9]} 31... Be4 {[%clk 0:00:38.8]}
32. Rc3 {[%clk 0:00:09.4]} 32... Nd6 {[%clk 0:00:36.5]} 33. Bc5 {[%clk
0:00:08.1]} 33... Nb5+ {[%clk 0:00:35.5]} 34. Nxb5 {[%clk 0:00:08.3]} 34... axb5
{[%clk 0:00:36.4]} 35. Kb4 {[%clk 0:00:08.8]} 35... Bc6 {[%clk 0:00:35.6]} 36.
Be3 {[%clk 0:00:06.6]} 36... Rxg3 {[%clk 0:00:31.5]} 37. Bf2 {[%clk 0:00:05.4]}
37... Rxc3 {[%clk 0:00:30.7]} 38. Kxc3 {[%clk 0:00:06.3]} 38... Kf7 {[%clk
0:00:22.9]} 39. b4 {[%clk 0:00:06.7]} 39... Ke6 {[%clk 0:00:22.7]} 40. Kd4
{[%clk 0:00:07.4]} 40... Kf7 {[%clk 0:00:12.7]} 41. Bh4 {[%clk 0:00:07.8]} 41...
Kg6 {[%clk 0:00:12.6]} 42. Kc5 {[%clk 0:00:08.5]} 42... Kf7 {[%clk 0:00:11.9]}
43. a6 {[%clk 0:00:06.3]} 43... bxa6 {[%clk 0:00:09.1]} 44. Kxc6 {[%clk
0:00:06.5]} 44... Ke6 {[%clk 0:00:06.8]} 45. Kb6 {[%clk 0:00:05.9]} 45... Kd5
{[%clk 0:00:07.7]} 46. Kxa6 {[%clk 0:00:06.1]} 46... Ke4 {[%clk 0:00:07.2]} 47.
Kxb5 {[%clk 0:00:06.3]} 47... Kxf4 {[%clk 0:00:07.6]} 48. Kc4 {[%clk 0:00:06.6]}
48... Kg4 {[%clk 0:00:07.7]} 49. b5 {[%clk 0:00:05.2]} 49... Kxh4 {[%clk
0:00:05.9]} 50. b6 {[%clk 0:00:05.8]} 50... f4 {[%clk 0:00:06.8]} 51. b7 {[%clk
0:00:06.7]} 51... f3 {[%clk 0:00:06.6]} 52. b8=Q {[%clk 0:00:07.6]} 52... f2
{[%clk 0:00:07.1]} 53. Qh2+ {[%clk 0:00:07.5]} 53... Kg4 {[%clk 0:00:06.6]} 54.
Qg2+ {[%clk 0:00:08.4]} 54... Kh4 {[%clk 0:00:05.9]} 55. Qxf2+ {[%clk
0:00:08.7]} 55... Kh3 {[%clk 0:00:06.2]} 56. Qg1 {[%clk 0:00:08.4]} 56... h4
{[%clk 0:00:05.8]} 57. Kd3 {[%clk 0:00:08]} 57... f5 {[%clk 0:00:06.1]} 58. Ke2
{[%clk 0:00:05.2]} 58... f4 {[%clk 0:00:07]} 59. Qh1+ {[%clk 0:00:05.5]} 59...
Kg3 {[%clk 0:00:06.5]} 60. Qf3+ {[%clk 0:00:05.6]} 60... Kh2 {[%clk 0:00:06.1]}
61. Kf2 {[%clk 0:00:04.7]} 61... h3 {[%clk 0:00:07]} 62. Qxf4+ {[%clk
0:00:03.5]} 62... Kh1 {[%clk 0:00:06.8]} 63. Qe4+ {[%clk 0:00:03.8]} 63... Kh2
{[%clk 0:00:06.6]} 64. Qe5+ {[%clk 0:00:04.3]} 64... Kh1 {[%clk 0:00:06.9]} 65.
Qd5+ {[%clk 0:00:04.8]} 65... Kh2 {[%clk 0:00:07]} 66. Qd6+ {[%clk 0:00:05.3]}
66... Kh1 {[%clk 0:00:07.4]} 67. Qc6+ {[%clk 0:00:06.2]} 67... Kh2 {[%clk
0:00:07.8]} 68. Qc7+ {[%clk 0:00:07.1]} 68... Kh1 {[%clk 0:00:08.3]} 69. Qb7+
{[%clk 0:00:07.7]} 69... Kh2 {[%clk 0:00:08.8]} 70. Qb8+ {[%clk 0:00:08.2]}
70... Kh1 {[%clk 0:00:08.7]} 71. Qb1+ {[%clk 0:00:07.8]} 71... Kh2 {[%clk
0:00:09.2]} 72. Qg1# {[%clk 0:00:08.2]} 1-0

[Event "Late-Titled-Tuesday-Blitz-November-28-2023"]
[Site "Chess.com"]
[Date "2023.11.28"]
[Round "10"]
[White "gabduschew"]
[Black "FM_Kappeler"]
[Result "1/2-1/2"]
[WhiteElo "2430"]
[BlackElo "2340"]
[TimeControl "180+1"]
[EndTime "15:53:17 PST"]
[Termination "Game drawn - timeout vs insufficient material"]

1. b3 {[%clk 0:02:49]} 1... d5 {[%clk 0:02:59]} 2. Bb2 {[%clk 0:02:48.7]} 2...
c6 {[%clk 0:02:59.4]} 3. e3 {[%clk 0:02:48.6]} 3... Nf6 {[%clk 0:02:59.7]} 4. f4
{[%clk 0:02:48.6]} 4... Bg4 {[%clk 0:02:51.2]} 5. Qc1 {[%clk 0:02:45.9]} 5...
Nbd7 {[%clk 0:02:49.4]} 6. h3 {[%clk 0:02:45]} 6... Bf5 {[%clk 0:02:45.6]} 7. d3
{[%clk 0:02:44]} 7... h5 {[%clk 0:02:39.9]} 8. Nf3 {[%clk 0:02:42.5]} 8... e6
{[%clk 0:02:36.3]} 9. Be2 {[%clk 0:02:39.7]} 9... Bc5 {[%clk 0:02:26.2]} 10. c4
{[%clk 0:02:24.8]} 10... Qc7 {[%clk 0:02:24.2]} 11. a3 {[%clk 0:02:19.6]} 11...
a5 {[%clk 0:02:21.7]} 12. cxd5 {[%clk 0:02:12.7]} 12... exd5 {[%clk 0:02:16.4]}
13. O-O {[%clk 0:01:42.1]} 13... O-O {[%clk 0:02:09.5]} 14. Bxf6 {[%clk
0:01:18.4]} 14... gxf6 {[%clk 0:02:03.2]} 15. Nh4 {[%clk 0:01:18.3]} 15... Bg6
{[%clk 0:01:50.3]} 16. d4 {[%clk 0:01:09.2]} 16... Be7 {[%clk 0:01:25.7]} 17.
Nc3 {[%clk 0:01:07.9]} 17... f5 {[%clk 0:01:17.6]} 18. Nxd5 {[%clk 0:01:04.4]}
18... Qd6 {[%clk 0:01:07.9]} 19. Nxe7+ {[%clk 0:01:03.8]} 19... Qxe7 {[%clk
0:01:07.5]} 20. Nf3 {[%clk 0:01:04.2]} 20... Nf6 {[%clk 0:01:01.3]} 21. Ne5
{[%clk 0:01:02.2]} 21... Nd5 {[%clk 0:00:59.6]} 22. Bf3 {[%clk 0:01:00.6]} 22...
Rad8 {[%clk 0:00:54.1]} 23. Re1 {[%clk 0:00:56.2]} 23... Kg7 {[%clk 0:00:51.8]}
24. Bxd5 {[%clk 0:00:51.2]} 24... Rxd5 {[%clk 0:00:51.1]} 25. Qc3 {[%clk
0:00:46.9]} 25... f6 {[%clk 0:00:49]} 26. Nf3 {[%clk 0:00:40.8]} 26... Re8
{[%clk 0:00:47.4]} 27. b4 {[%clk 0:00:38.7]} 27... a4 {[%clk 0:00:46.3]} 28.
Rac1 {[%clk 0:00:36.3]} 28... Bf7 {[%clk 0:00:44.2]} 29. Kf2 {[%clk 0:00:35.6]}
29... Kh6 {[%clk 0:00:28]} 30. Qc2 {[%clk 0:00:34.9]} 30... Rg8 {[%clk
0:00:23.9]} 31. Qxa4 {[%clk 0:00:30.8]} 31... Be6 {[%clk 0:00:20.5]} 32. Qc2
{[%clk 0:00:23.4]} 32... Qg7 {[%clk 0:00:20.4]} 33. Rg1 {[%clk 0:00:20.1]} 33...
Ra8 {[%clk 0:00:20.2]} 34. Ra1 {[%clk 0:00:19.1]} 34... Rd7 {[%clk 0:00:19.5]}
35. a4 {[%clk 0:00:16.9]} 35... Qg6 {[%clk 0:00:17.8]} 36. g4 {[%clk 0:00:14.4]}
36... hxg4 {[%clk 0:00:17.3]} 37. hxg4 {[%clk 0:00:13.7]} 37... fxg4 {[%clk
0:00:17.6]} 38. Qxg6+ {[%clk 0:00:13.3]} 38... Kxg6 {[%clk 0:00:18]} 39. Nh4+
{[%clk 0:00:12.4]} 39... Kf7 {[%clk 0:00:17.6]} 40. f5 {[%clk 0:00:12.1]} 40...
Bd5 {[%clk 0:00:17.7]} 41. Rxg4 {[%clk 0:00:11.9]} 41... Rh8 {[%clk 0:00:17.3]}
42. Rag1 {[%clk 0:00:10.7]} 42... Ke7 {[%clk 0:00:17]} 43. Ng6+ {[%clk
0:00:08.8]} 43... Kd6 {[%clk 0:00:17]} 44. Nxh8 {[%clk 0:00:08.9]} 44... Rh7
{[%clk 0:00:17.6]} 45. Ng6 {[%clk 0:00:08.8]} 45... Rh2+ {[%clk 0:00:17.3]} 46.
R1g2 {[%clk 0:00:09.1]} 46... Bxg2 {[%clk 0:00:16.2]} 47. Rxg2 {[%clk
0:00:09.3]} 47... Rh1 {[%clk 0:00:16.6]} 48. Kf3 {[%clk 0:00:09.1]} 48... Rf1+
{[%clk 0:00:16.2]} 49. Ke4 {[%clk 0:00:08.8]} 49... Ra1 {[%clk 0:00:15.9]} 50.
Nf4 {[%clk 0:00:08.3]} 50... Rxa4 {[%clk 0:00:15.5]} 51. Rg6 {[%clk 0:00:08]}
51... Ke7 {[%clk 0:00:14.8]} 52. Rg7+ {[%clk 0:00:08.1]} 52... Kf8 {[%clk
0:00:14.9]} 53. Rxb7 {[%clk 0:00:07.9]} 53... Ra3 {[%clk 0:00:12.8]} 54. Nh5
{[%clk 0:00:07.5]} 54... c5 {[%clk 0:00:09.2]} 55. bxc5 {[%clk 0:00:06.9]} 55...
Rc3 {[%clk 0:00:08.9]} 56. Nxf6 {[%clk 0:00:06.3]} 56... Rxe3+ {[%clk
0:00:08.9]} 57. Kd5 {[%clk 0:00:04.7]} 57... Re5+ {[%clk 0:00:08.9]} 58. Kd6
{[%clk 0:00:03.1]} 58... Rd5+ {[%clk 0:00:09.1]} 59. Nxd5 {[%clk 0:00:02.3]}
59... Ke8 {[%clk 0:00:07.8]} 60. Ke6 {[%clk 0:00:01.8]} 60... Kd8 {[%clk
0:00:08.2]} 61. c6 {[%clk 0:00:01.5]} 61... Kc8 {[%clk 0:00:08.5]} 1/2-1/2